bitfinex/quotes_ETHUSD_20250731
["timestamp","ask_amount","ask_price","bid_price","bid_amount"]
[1753959997638,7.0905,3855.2,3855.0,131.717]
[1753959997807,2.59396643,3855.1,3855.0,131.717]
[1753959998006,6.72096643,3855.1,3855.0,131.717]
[1753959998835,4.127,3855.1,3855.0,131.717]
[1753959999017,4.127,3855.1,3855.0,132.1887]
[1753959999404,7.27096643,3855.1,3855.0,131.717]
[1753960002742,4.677,3855.1,3855.0,131.717]
[1753960003132,4.677,3855.1,3855.0,132.1887]
[1753960003626,7.27096643,3855.1,3855.0,131.717]
[1753960003830,7.51240795,3855.1,3855.0,131.717]
[1753960005325,12.28070795,3855.1,3855.0,131.717]
[1753960005509,13.06046595,3855.1,3855.0,131.717]
[1753960007813,13.30214995,3855.1,3855.0,131.717]
[1753960010150,13.30203689,3855.1,3855.0,131.717]
[1753960010844,8.22513689,3855.1,3855.0,131.717]
[1753960011050,12.33913689,3855.1,3855.0,131.717]
[1753960011250,12.80703689,3855.1,3855.0,131.717]
[1753960011926,12.33513689,3855.1,3855.0,132.1887]
[1753960012450,12.09356595,3855.1,3855.0,132.1887]
[1753960013244,11.27516595,3855.1,3855.0,132.1887]
[1753960013440,12.08746595,3855.1,3855.0,131.717]
[1753960013645,13.03736595,3855.1,3855.0,131.717]
[1753960014020,13.27873648,3855.1,3855.0,131.717]
[1753960015229,13.27873648,3855.1,3855.0,93.16387277]
[1753960016535,18.11624794,3855.1,3855.0,93.16387277]
[1753960016937,13.27873648,3855.1,3855.0,93.16387277]
[1753960017246,18.11624794,3855.1,3855.0,93.16387277]
[1753960018255,2.5941683,3854.8,3854.7,1.39688415]
[1753960018422,22.62552128,3854.8,3854.7,1.39688415]
[1753960018628,23.57542128,3854.8,3854.7,1.39688415]
[1753960018952,24.35228528,3854.8,3854.7,1.39688415]
[1753960019256,24.7230113,3854.8,3854.7,1.39688415]
[1753960020257,20.6220113,3854.8,3854.7,1.39688415]
[1753960020458,20.6220113,3854.8,3854.0,0.941]
[1753960020459,3.14463947,3854.1,3854.0,0.941]
[1753960020632,17.79258099,3854.1,3854.0,0.941]
[1753960020955,17.92218099,3854.1,3854.0,0.941]
[1753960021122,18.70215499,3854.1,3854.0,0.941]
[1753960021830,12.00651552,3854.1,3854.0,0.941]
[1753960022041,15.30701552,3854.1,3854.0,1.4127]
[1753960022245,7.64701552,3854.1,3854.0,1.90686229]
[1753960022458,6.6256,3854.1,3854.0,2.6134]
[1753960022753,13.01122338,3854.1,3854.0,1.8433]
[1753960022918,10.41658391,3854.1,3854.0,1.8433]
[1753960023618,13.79111338,3854.1,3854.0,1.8433]
[1753960024358,11.19647391,3854.1,3854.0,1.8433]
[1753960025440,13.79111338,3854.1,3854.0,1.8433]
[1753960025766,11.19647391,3854.1,3854.0,1.8433]
[1753960026634,13.79111338,3854.1,3854.0,1.8433]
[1753960026831,11.19656332,3854.1,3854.0,1.8433]
[1753960027058,13.79120279,3854.1,3854.0,1.8433]
[1753960028435,13.79120279,3854.1,3854.0,1.4127]
[1753960028978,13.79120279,3854.1,3854.0,0.941]
[1753960029330,14.23030279,3854.1,3854.0,0.941]
[1753960029530,13.79120279,3854.1,3854.0,0.941]
[1753960029771,13.79130876,3854.1,3854.0,0.941]
[1753960030173,13.79130876,3854.1,3854.0,1.3949]
[1753960030634,13.79130876,3854.1,3854.0,0.941]
[1753960030834,13.79130876,3854.1,3854.0,1.3949]
[1753960031336,13.79130876,3854.1,3854.0,0.941]
[1753960032064,13.79130876,3854.1,3854.0,1.3949]
[1753960032272,11.19666929,3854.1,3854.0,1.8282]
[1753960032445,11.51677929,3854.1,3854.0,1.8282]
[1753960032662,6.73717929,3854.1,3854.0,0.941]
[1753960032876,13.83717929,3854.1,3854.0,1.8282]
[1753960033285,14.38717929,3854.1,3854.0,1.3949]
[1753960033488,12.88181876,3854.1,3854.0,1.3949]
[1753960033798,17.76372376,3854.1,3854.0,0.941]
[1753960034164,14.927905,3854.1,3854.0,1.3949]
[1753960034360,15.16929269,3854.1,3854.0,1.8282]
[1753960035074,17.76393216,3854.1,3854.0,1.3949]
[1753960035693,17.76393216,3854.1,3854.0,0.941]
[1753960036062,18.20303216,3854.1,3854.0,0.941]
[1753960036261,17.76393216,3854.1,3854.0,0.941]
[1753960036884,17.76393216,3854.1,3854.0,1.3949]
[1753960037391,14.38438769,3854.1,3854.0,1.8282]
[1753960037600,14.38338769,3854.1,3854.0,2.6296]
[1753960038710,9.73738769,3854.1,3854.0,2.6296]
[1753960038878,13.96298769,3854.1,3854.0,2.6296]
[1753960039072,17.10762716,3854.1,3854.0,1.3949]
[1753960039690,14.51298769,3854.1,3854.0,1.3949]
[1753960039869,14.51298769,3854.1,3854.0,1.8282]
[1753960040196,17.1079451,3854.1,3854.0,1.8282]
[1753960040396,17.1079451,3854.1,3854.0,0.941]
[1753960040595,16.86623947,3854.1,3854.0,0.941]
[1753960040898,17.10796527,3854.1,3854.0,0.941]
[1753960041210,17.10796527,3854.1,3854.0,1.8282]
[1753960041211,13.9633258,3854.1,3854.0,1.8282]
[1753960041362,7.3377258,3854.1,3854.0,2.6573]
[1753960041771,7.3377738,3854.1,3854.0,2.6573]
[1753960042000,7.3377738,3854.1,3854.0,2.6583]
[1753960042212,4.3417738,3854.1,3854.0,2.6583]
[1753960043303,7.3417738,3854.1,3854.0,2.225]
[1753960043668,7.3417738,3854.1,3854.0,2.6583]
[1753960043869,7.3417738,3854.1,3854.0,0.942]
[1753960044071,10.48641327,3854.1,3854.0,0.942]
[1753960044395,10.48652361,3854.1,3854.0,0.942]
[1753960045826,10.48652361,3854.1,3854.0,1.3959]
[1753960046403,10.48552361,3854.1,3854.0,1.3959]
[1753960046607,7.89088414,3854.1,3854.0,1.3959]
[1753960046894,7.88788414,3854.1,3854.0,1.8292]
[1753960047464,3.79388414,3854.1,3854.0,2.2245]
[1753960047677,7.88788414,3854.1,3854.0,1.3959]
[1753960048712,10.48252361,3854.1,3854.0,1.3959]
[1753960048921,7.646,3854.1,3854.0,1.3959]
[1753960049218,7.88801483,3854.1,3854.0,1.3959]
[1753960049717,3.79401483,3854.1,3854.0,1.8292]
[1753960049924,7.88401483,3854.1,3854.0,1.8292]
[1753960050997,10.4786543,3854.1,3854.0,1.3959]
[1753960051193,7.88401483,3854.1,3854.0,0.942]
[1753960051493,10.4786543,3854.1,3854.0,0.942]
[1753960051812,10.9177543,3854.1,3854.0,0.942]
[1753960052380,11.0473543,3854.1,3854.0,0.942]
[1753960052785,11.0473319,3854.1,3854.0,0.942]
[1753960053622,11.04732388,3854.1,3854.0,0.942]
[1753960054219,11.52052388,3854.1,3854.0,0.942]
[1753960054726,11.04732388,3854.1,3854.0,0.942]
[1753960055410,11.52052388,3854.1,3854.0,0.942]
[1753960055902,11.76250277,3854.1,3854.0,0.942]
[1753960058327,11.89433957,3854.1,3854.0,0.942]
[1753960059809,11.65236068,3854.1,3854.0,0.942]
[1753960060126,11.8943088,3854.1,3854.0,0.942]
[1753960060722,12.6862088,3854.1,3854.0,0.942]
[1753960064007,12.41095078,3854.0,3853.9,0.1015199]
[1753960066201,12.41072811,3854.0,3853.9,0.1015199]
[1753960068312,6.14484145,3853.8,3853.7,0.01280303]
[1753960068508,16.95060319,3853.8,3853.7,0.01280303]
[1753960068714,17.66388814,3853.8,3853.7,0.01280303]
[1753960069337,18.91528814,3853.8,3853.7,0.01280303]
[1753960070130,18.44208814,3853.8,3853.7,0.01280303]
[1753960070445,18.44208814,3853.8,3853.1,0.04]
[1753960070446,6.14524551,3853.2,3853.1,0.04]
[1753960070610,16.95100725,3853.2,3853.1,0.04]
[1753960070999,12.88600725,3853.2,3853.1,0.04]
[1753960071242,12.88600725,3853.2,3853.1,0.9668]
[1753960071533,16.94976497,3853.2,3853.1,0.9668]
[1753960071738,12.88576497,3853.2,3853.1,0.9668]
[1753960072033,16.94976497,3853.2,3853.1,0.9668]
[1753960072532,16.94876497,3853.2,3853.1,0.9668]
[1753960072895,10.29051946,3853.2,3853.1,0.9668]
[1753960073100,16.94876497,3853.2,3853.1,0.9668]
[1753960073512,12.88576497,3853.2,3853.1,0.9668]
[1753960073732,16.94776497,3853.2,3853.1,0.9668]
[1753960074321,16.94776497,3853.2,3853.1,0.04]
[1753960074831,17.74236497,3853.2,3853.1,0.04]
[1753960075031,16.94576497,3853.2,3853.1,0.505]
[1753960075335,16.94576497,3853.2,3853.1,0.04]
[1753960075732,16.94576497,3853.2,3853.1,0.505]
[1753960077014,17.1444551,3853.2,3853.1,0.505]
[1753960077235,16.94676497,3853.2,3853.1,0.9668]
[1753960078150,17.07636497,3853.2,3853.1,0.9668]
[1753960078554,17.07736497,3853.2,3853.1,0.9668]
[1753960079246,13.01536497,3853.2,3853.1,0.9668]
[1753960079409,17.07536497,3853.2,3853.1,0.9668]
[1753960080137,10.42011946,3853.2,3853.1,0.9668]
[1753960080509,14.47805461,3853.2,3853.1,0.9668]
[1753960081463,10.42005461,3853.2,3853.1,0.9668]
[1753960081666,6.74045461,3853.2,3853.1,0.5018]
[1753960081825,6.74045461,3853.2,3853.1,0.9668]
[1753960081826,10.79745461,3853.2,3853.1,0.9668]
[1753960082160,13.79745461,3853.2,3853.1,0.9668]
[1753960082457,6.74045461,3853.2,3853.1,0.9668]
[1753960082667,13.79755477,3853.2,3853.1,1.7799]
[1753960083563,9.74055477,3853.2,3853.1,4.37521286]
[1753960083768,13.79755477,3853.2,3853.1,4.93537742]
[1753960083970,9.74055477,3853.2,3853.1,4.93537742]
[1753960084446,6.74055477,3853.2,3853.1,4.93537742]
[1753960084831,0.24155477,3853.2,3853.1,4.93537742]
[1753960085254,4.055,3853.6,3853.4,3.36111081]
[1753960085535,10.551,3853.7,3853.5,1.698]
[1753960085762,0.2417138,3853.6,3853.5,3.36104346]
[1753960086368,0.2417138,3853.6,3853.5,1.698]
[1753960087070,0.2417138,3853.6,3853.5,4.29304346]
[1753960087665,0.2417138,3853.6,3853.5,9.26015492]
[1753960087957,0.2417138,3853.6,3853.5,10.52051995]
[1753960089207,0.2417138,3853.6,3853.5,3.08796503]
[1753960089532,0.2417138,3853.6,3853.5,1.698]
[1753960089696,1.66304346,3853.5,3853.4,0.1296]
[1753960089900,1.90475726,3853.5,3853.4,0.1296]
[1753960091897,1.90475726,3853.5,3853.4,0.6271]
[1753960092218,1.90475726,3853.5,3853.1,0.04]
[1753960092219,1.90475726,3853.5,3853.1,0.5375]
[1753960092396,1.66304346,3853.5,3853.3,0.1296]
[1753960093222,0.24168526,3853.4,3853.3,0.1296]
[1753960093533,0.24168526,3853.4,3853.3,0.5641]
[1753960093729,0.24168526,3853.4,3853.3,1.35304905]
[1753960093908,0.24168526,3853.4,3853.3,1.4307]
[1753960094109,1.66304346,3853.5,3853.3,1.4307]
[1753960094328,1.66304346,3853.5,3853.3,4.0258745]
[1753960094526,1.66304346,3853.5,3853.4,0.932]
[1753960094825,1.66304346,3853.5,3853.4,0.4975]
[1753960096194,2.60994346,3853.5,3853.3,0.4987]
[1753960096403,1.0765,3853.4,3853.1,0.04]
[1753960096624,6.497,3853.3,3853.1,0.04]
[1753960097125,0.9469,3853.2,3853.1,0.04]
[1753960097528,1.1884849,3853.2,3853.1,0.04]
[1753960099323,0.2415849,3853.2,3853.1,0.04]
[1753960100732,10.539,3853.3,3853.1,0.04]
[1753960101340,11.4859,3853.3,3853.1,0.04]
[1753960102706,10.539,3853.3,3853.1,0.04]
[1753960102908,10.539,3853.3,3853.1,0.5375]
[1753960103834,13.539,3853.3,3853.2,0.4975]
[1753960104032,9.73860681,3853.3,3853.1,0.04]
[1753960104235,9.497,3853.3,3853.2,0.4975]
[1753960104406,9.7386363,3853.3,3853.2,0.4975]
[1753960107153,9.7386363,3853.3,3853.2,0.8666]
[1753960108749,9.7386363,3853.3,3853.2,0.3691]
[1753960109752,9.7386363,3853.3,3853.1,0.04]
[1753960109947,0.2416363,3853.2,3853.1,0.04]
[1753960112153,11.36078181,3853.2,3853.1,0.04]
[1753960112350,16.98729327,3853.2,3853.1,0.04]
[1753960112649,6.38451495,3852.8,3852.7,0.001]
[1753960112831,16.91751495,3852.8,3852.7,0.001]
[1753960113031,18.1062886,3852.8,3852.7,0.001]
[1753960113249,18.8864706,3852.8,3852.7,0.001]
[1753960113729,19.4364706,3852.8,3852.7,0.001]
[1753960113932,24.51573664,3852.8,3852.7,0.001]
[1753960114472,24.51573664,3852.8,3852.1,1.537]
[1753960114473,6.96801921,3852.2,3852.1,1.537]
[1753960114624,17.74889286,3852.2,3852.1,1.537]
[1753960115128,19.72379424,3852.2,3852.1,1.537]
[1753960115652,19.48226186,3852.2,3852.1,1.537]
[1753960115857,15.44326186,3852.2,3852.1,1.537]
[1753960116147,19.48126186,3852.2,3852.1,1.537]
[1753960116730,19.48040599,3852.2,3852.1,1.537]
[1753960117249,20.25805766,3852.2,3852.1,1.537]
[1753960117457,19.47940599,3852.2,3852.1,1.537]
[1753960117633,19.48240599,3852.2,3852.1,1.537]
[1753960118244,15.44240599,3852.2,3852.1,1.537]
[1753960118434,19.48340599,3852.2,3852.1,1.537]
[1753960120541,15.44240599,3852.2,3852.1,1.537]
[1753960120748,19.48140599,3852.2,3852.1,1.537]
[1753960121257,19.48092681,3852.2,3852.1,1.537]
[1753960121874,19.24038821,3852.2,3852.1,1.537]
[1753960122055,20.05378226,3852.2,3852.1,1.537]
[1753960122356,19.48085525,3852.2,3852.1,1.537]
[1753960122557,19.61045525,3852.2,3852.1,1.537]
[1753960123738,19.7384512,3852.2,3852.1,1.537]
[1753960124434,19.7354512,3852.2,3852.1,1.537]
[1753960125169,3.14659326,3851.2,3851.1,0.04]
[1753960125471,16.81319326,3851.2,3851.1,0.04]
[1753960125642,16.81319326,3851.2,3851.1,0.5265]
[1753960125841,14.5857,3851.2,3851.1,0.5265]
[1753960126335,17.18229326,3851.2,3851.1,0.5265]
[1753960126533,16.81319326,3851.2,3851.1,0.5265]
[1753960128140,17.76619326,3851.2,3851.1,0.04]
[1753960129082,16.81319326,3851.2,3851.1,0.041]
[1753960131286,17.76619326,3851.2,3851.1,0.041]
[1753960131794,18.17529326,3851.2,3851.1,0.041]
[1753960132153,18.41540141,3851.2,3851.1,0.041]
[1753960133055,19.22780141,3851.2,3851.1,0.041]
[1753960134787,19.21780141,3851.2,3851.1,0.041]
[1753960135084,18.26480141,3851.2,3851.1,0.041]
[1753960135590,19.21780141,3851.2,3851.1,0.041]
[1753960140490,18.26480141,3851.2,3851.1,0.041]
[1753960140705,17.44740141,3851.2,3851.1,0.5275]
[1753960141878,17.44740141,3851.2,3851.1,0.041]
[1753960142281,17.44740141,3851.2,3851.1,0.5275]
[1753960143280,13.42640141,3851.2,3851.1,0.041]
[1753960143480,17.44540141,3851.2,3851.1,0.509]
[1753960143775,17.44540141,3851.2,3851.1,0.9554]
[1753960144310,14.84780815,3851.2,3851.1,0.9554]
[1753960144472,17.03530141,3851.2,3851.1,0.9554]
[1753960145404,17.03530141,3851.2,3851.1,0.509]
[1753960145774,13.88770815,3851.2,3851.1,0.9554]
[1753960146295,9.87070815,3851.2,3851.1,0.9554]
[1753960146603,13.88570815,3851.2,3851.1,0.9554]
[1753960147173,13.88570815,3851.2,3851.1,1.3245]
[1753960147372,9.74110815,3851.2,3851.1,1.3245]
[1753960147593,13.75610815,3851.2,3851.1,1.3245]
[1753960148069,9.74110815,3851.2,3851.1,1.3245]
[1753960148268,9.74110815,3851.2,3851.1,1.59951]
[1753960148269,13.75610815,3851.2,3851.1,1.59951]
[1753960148474,7.25510815,3851.2,3851.1,1.59951]
[1753960148699,0.24010815,3851.2,3851.1,1.59951]
[1753960148904,4.25710815,3851.2,3851.1,4.19617069]
[1753960149405,4.016,3851.3,3851.1,4.19617069]
[1753960149587,4.016,3851.3,3851.2,1.1630457]
[1753960149785,4.016,3851.3,3851.2,5.17273896]
[1753960149786,4.25766044,3851.3,3851.2,5.17273896]
[1753960149990,0.24166044,3851.3,3851.2,5.17273896]
[1753960150187,4.25766044,3851.3,3851.2,2.5761457]
[1753960151407,4.016,3851.3,3851.2,2.5761457]
[1753960151711,4.016,3851.3,3851.2,1.4131]
[1753960152008,4.015,3851.4,3851.2,1.4131]
[1753960152215,6.5,3851.3,3851.2,0.4987]
[1753960152590,6.5,3851.3,3851.2,3.09529326]
[1753960152911,3.002,3852.1,3851.3,0.3691]
[1753960152912,4.013,3851.5,3851.3,0.3691]
[1753960153124,4.013,3851.5,3851.4,0.9144]
[1753960153283,4.013,3851.5,3851.4,1.044]
[1753960153482,0.2414348,3851.5,3851.4,1.4131]
[1753960153692,0.2414348,3851.5,3851.4,4.00950764]
[1753960153877,0.2414348,3851.5,3851.4,4.80506186]
[1753960154186,4.012,3851.7,3851.4,2.20865422]
[1753960154512,4.012,3851.7,3851.6,0.1296]
[1753960154808,4.012,3851.7,3851.6,1.044]
[1753960154809,4.25339026,3851.7,3851.6,1.044]
[1753960155012,4.012,3851.7,3851.6,1.044]
[1753960155917,6.499,3851.8,3851.6,1.044]
[1753960156079,4.01,3851.7,3851.6,1.044]
[1753960156274,4.01,3851.7,3851.6,0.576]
[1753960156489,4.01,3851.7,3851.6,1.044]
[1753960157603,4.01,3851.7,3851.6,0.5976]
[1753960158706,4.008,3851.7,3851.6,0.5976]
[1753960159080,7.9445,3851.7,3851.1,0.55551]
[1753960159279,3.4867,3851.6,3851.3,0.1296]
[1753960159479,4.007,3851.5,3851.3,0.1296]
[1753960159676,6.499,3851.4,3851.3,0.1296]
[1753960160520,9.499,3851.4,3851.3,0.1296]
[1753960160720,3.0,3851.3,3851.1,0.041]
[1753960160912,7.9435,3851.3,3851.1,0.041]
[1753960161111,0.9365,3851.2,3851.1,0.041]
[1753960162541,1.17758486,3851.2,3851.1,0.041]
[1753960166002,1.17766119,3851.2,3851.1,0.041]
[1753960166643,1.17768841,3851.2,3851.1,0.041]
[1753960168222,6.90388167,3851.2,3851.1,0.041]
[1753960168540,7.45388167,3851.2,3851.1,0.041]
[1753960170620,8.25818167,3851.2,3851.1,0.041]
[1753960173458,8.25825523,3851.2,3851.1,0.041]
[1753960174060,8.25828682,3851.2,3851.1,0.041]
[1753960174851,8.39081406,3851.2,3851.1,0.041]
[1753960178165,8.39072375,3851.2,3851.1,0.041]
[1753960179741,8.39067787,3851.2,3851.1,0.041]
[1753960183649,13.22818933,3851.2,3851.1,0.041]
[1753960184861,8.39067787,3851.2,3851.1,0.041]
[1753960185384,13.40059337,3851.2,3851.1,0.041]
[1753960185790,13.40057876,3851.2,3851.1,0.041]
[1753960185951,13.89277876,3851.2,3851.1,0.041]
[1753960187574,13.89277876,3851.2,3851.1,1e-08]
[1753960188453,13.89277876,3851.2,3850.1,0.04]
[1753960188454,3.90566767,3850.2,3850.1,0.04]
[1753960188676,17.77442504,3850.2,3850.1,0.04]
[1753960189118,18.72512504,3850.2,3850.1,0.04]
[1753960189255,17.96672504,3850.2,3850.1,0.04]
[1753960189461,18.75082504,3850.2,3850.1,0.04]
[1753960191274,0.1,3848.3,3847.2,4.83751146]
[1753960191580,10.515,3848.2,3848.0,0.1296]
[1753960191781,6.506,3848.2,3848.1,0.9358]
[1753960191980,4.01,3848.2,3848.1,1.0654]
[1753960192554,0.1,3848.3,3848.1,1.0654]
[1753960192802,4.009,3848.2,3848.1,0.1296]
[1753960193416,4.01,3848.2,3848.1,1.0654]
[1753960193909,4.01,3848.2,3848.1,0.0496]
[1753960194114,4.01,3848.2,3848.1,0.4922]
[1753960194312,4.01,3848.2,3848.1,0.9758]
[1753960195307,7.02128506,3848.1,3848.0,0.1296]
[1753960195602,7.02128506,3848.1,3846.7,0.04]
[1753960195603,2.59914695,3847.5,3846.7,0.04]
[1753960195805,3.0,3848.0,3845.6,0.4922]
[1753960195806,0.7983,3846.4,3845.6,0.4922]
[1753960195966,3.0,3846.4,3845.9,0.04]
[1753960196171,6.508,3846.3,3845.9,0.04]
[1753960196368,6.508,3846.3,3846.1,0.04]
[1753960196588,6.508,3846.3,3846.2,0.4922]
[1753960196807,6.508,3846.3,3846.2,0.9358]
[1753960197106,10.538,3846.3,3846.2,0.9358]
[1753960197788,10.538,3846.3,3846.2,0.4922]
[1753960198185,10.638,3846.3,3846.2,0.4922]
[1753960198406,10.538,3846.3,3846.2,0.4922]
[1753960198806,10.638,3846.3,3846.2,0.4922]
[1753960199214,10.638,3846.3,3846.1,0.04]
[1753960199422,13.638,3846.3,3846.1,0.04]
[1753960200080,13.638,3846.3,3846.1,0.5322]
[1753960200482,13.638,3846.3,3846.1,0.04]
[1753960200810,9.608,3846.3,3846.2,0.4922]
[1753960201018,13.636,3846.3,3846.2,0.4922]
[1753960201216,7.3687,3846.3,3846.1,0.04]
[1753960201396,3.0,3846.2,3846.1,0.08]
[1753960201808,3.0,3846.2,3846.1,0.5722]
[1753960202129,3.0,3846.2,3845.8,0.04]
[1753960202296,0.1,3846.0,3845.8,0.04]
[1753960202495,6.509,3845.9,3845.8,0.04]
[1753960204445,6.509,3845.9,3845.8,0.4539]
[1753960204645,6.508,3846.3,3846.2,2.5999688]
[1753960204942,0.1,3846.6,3846.3,0.04]
[1753960205143,6.508,3846.5,3846.3,0.04]
[1753960205345,6.508,3846.5,3846.4,0.5738]
[1753960205547,6.508,3846.5,3846.4,0.4139]
[1753960205849,6.508,3846.5,3846.4,0.5435]
[1753960206345,6.508,3846.5,3846.4,3.89756588]
[1753960206511,3.0,3847.2,3846.4,3.89756588]
[1753960206512,3.0,3846.9,3846.5,2.59972228]
[1753960206708,3.0,3846.9,3846.6,0.4139]
[1753960207115,0.1,3846.7,3846.6,0.4139]
[1753960207312,0.1,3846.7,3846.4,1.00823227]
[1753960207515,0.1296,3847.2,3846.5,0.4139]
[1753960207516,6.608,3846.6,3846.5,0.4139]
[1753960207931,6.608,3846.6,3846.5,0.5435]
[1753960208738,6.608,3846.6,3846.5,8.37270233]
[1753960208739,6.508,3846.6,3846.5,8.37270233]
[1753960208948,0.1,3846.6,3846.5,5.93283631]
[1753960209128,9.507,3847.1,3846.6,2.5996827]
[1753960209356,9.507,3847.1,3846.6,8.8366827]
[1753960209556,9.507,3847.1,3847.0,0.1296]
[1753960209880,9.607,3847.1,3847.0,0.1296]
[1753960210281,9.507,3847.1,3847.0,0.04]
[1753960210480,9.607,3847.1,3847.0,0.1696]
[1753960212584,6.507,3847.1,3847.0,3.41722812]
[1753960212787,6.507,3847.1,3847.0,4.50265834]
[1753960212975,6.506,3847.6,3847.2,2.59926534]
[1753960213181,6.506,3847.6,3847.3,6.5403]
[1753960213383,6.506,3847.6,3847.3,8.65119973]
[1753960213588,6.506,3847.6,3847.4,2.5991048]
[1753960213776,6.506,3847.6,3847.5,0.1296]
[1753960214395,6.506,3847.6,3847.5,2.72869031]
[1753960214600,6.506,3847.6,3847.5,0.1296]
[1753960214961,6.506,3847.6,3847.5,2.72869031]
[1753960215160,6.506,3847.6,3847.5,0.1296]
[1753960215658,6.9417,3847.6,3847.5,0.1296]
[1753960216166,6.506,3847.6,3847.5,0.1296]
[1753960216792,6.506,3847.6,3847.5,3.21699031]
[1753960217862,6.506,3847.6,3847.5,0.6179]
[1753960218067,6.508,3847.6,3847.5,0.1296]
[1753960218484,6.9437,3847.6,3847.5,0.1296]
[1753960218884,6.508,3847.6,3847.5,0.1296]
[1753960219288,6.508,3847.6,3847.5,2.72869031]
[1753960219492,6.508,3847.6,3847.5,0.1296]
[1753960219802,6.508,3847.6,3847.5,3.21699031]
[1753960220690,6.508,3847.6,3847.5,4.26127317]
[1753960220875,0.002,3847.6,3847.5,4.42117317]
[1753960221897,0.002,3847.6,3847.5,4.26127317]
[1753960222596,0.002,3847.6,3847.5,4.42117317]
[1753960223595,0.002,3847.6,3847.5,4.26127317]
[1753960225898,0.002,3847.6,3847.5,4.42117317]
[1753960226076,1e-08,3847.6,3847.5,7.42117317]
[1753960226704,0.04,3847.9,3847.8,2.63888767]
[1753960226884,0.04,3847.9,3847.8,14.34930194]
[1753960227074,0.04,3847.9,3847.8,14.47890194]
[1753960227278,0.04,3847.9,3847.8,15.12710194]
[1753960230581,0.04,3847.9,3847.8,14.47890194]
[1753960231988,0.04,3847.9,3847.8,14.96720194]
[1753960240029,0.042,3847.9,3847.8,14.96720194]
[1753960240233,0.042,3847.9,3847.8,8.76339048]
[1753960240431,1.0926,3847.9,3847.8,7.12748767]
[1753960244118,0.042,3847.9,3847.8,7.12748767]
[1753960244327,1.0926,3847.9,3847.8,7.12748767]
[1753960244531,1.0926,3847.9,3847.8,4.5286]
[1753960244718,1.0926,3847.9,3847.8,2.72848767]
[1753960245224,1.0926,3847.9,3847.8,6.74148767]
[1753960246230,1.0926,3847.9,3847.8,11.57899913]
[1753960246643,0.042,3847.9,3847.8,11.57899913]
[1753960246843,1.0926,3847.9,3847.8,11.57899913]
[1753960248121,1.0926,3847.9,3847.8,11.57699913]
[1753960248850,1.0926,3847.9,3847.8,7.56599913]
[1753960249013,1.0926,3847.9,3847.8,11.57699913]
[1753960252261,1.0926,3847.9,3847.8,7.56599913]
[1753960252460,1.0926,3847.9,3847.8,11.57299913]
[1753960253102,0.992641,3847.9,3847.8,11.57299913]
[1753960254145,0.992641,3847.9,3847.8,11.57199913]
[1753960256142,0.992641,3847.9,3847.8,11.56999913]
[1753960258552,0.992641,3847.9,3847.8,6.73048767]
[1753960259857,0.992641,3847.9,3847.8,2.72848767]
[1753960260231,1.0506,3847.9,3847.8,6.72948767]
[1753960260427,0.4372,3847.9,3847.8,6.72948767]
[1753960260626,0.5372,3848.2,3848.1,2.59868506]
[1753960260826,0.1,3848.2,3848.1,6.59968506]
[1753960261053,6.505,3848.3,3848.1,4.1306]
[1753960261257,0.6134,3848.2,3848.1,6.72928506]
[1753960261577,0.6134,3848.5,3848.2,2.59861753]
[1753960261730,0.5372,3848.6,3848.5,2.59841496]
[1753960262057,0.77856403,3848.6,3848.5,6.59841496]
[1753960262265,1.39196403,3848.6,3848.5,6.72801496]
[1753960263340,1.29196403,3848.6,3848.5,6.72801496]
[1753960263537,0.24136403,3848.6,3848.5,6.72801496]
[1753960263737,0.24144706,3848.7,3848.5,6.72801496]
[1753960264041,0.24144706,3848.6,3848.5,6.72801496]
[1753960264241,0.4527,3848.7,3848.6,2.59834745]
[1753960264534,0.24145572,3848.7,3848.6,2.59834745]
[1753960265231,0.69415572,3848.7,3848.6,7.43585891]
[1753960265428,1.32449152,3848.7,3848.6,7.43585891]
[1753960265958,1.32449152,3848.7,3848.6,4.83751146]
[1753960266265,1.32449152,3848.7,3848.6,6.59734745]
[1753960266442,1.32449152,3848.7,3848.6,3.999]
[1753960266645,1.32449152,3848.7,3848.5,0.1296]
[1753960266834,1.0882,3848.6,3848.5,0.1296]
[1753960267029,1.8877,3848.6,3848.5,4.1286]
[1753960267261,1.9877,3848.6,3848.5,4.1286]
[1753960269787,1.9877,3848.6,3848.5,4.1276]
[1753960270078,1.9877,3848.6,3848.5,0.1296]
[1753960270262,1.9877,3848.6,3847.6,4.83851146]
[1753960270263,0.1,3848.4,3847.6,4.83851146]
[1753960270439,0.1,3848.2,3847.7,6.59690323]
[1753960270634,1.0882,3848.1,3847.9,2.59881785]
[1753960270964,0.1,3848.2,3848.1,0.1296]
[1753960271164,0.1,3848.2,3848.0,4.1276]
[1753960271371,1.0882,3848.1,3848.0,4.1276]
[1753960272765,6.505,3848.3,3848.2,2.59861753]
[1753960272957,6.505,3848.3,3848.2,11.43412899]
[1753960273171,6.505,3848.3,3848.2,11.56372899]
[1753960273378,6.504,3848.8,3848.5,2.59836253]
[1753960273550,6.504,3848.8,3848.6,3.998]
[1753960273751,0.4527,3848.7,3848.6,6.59633924]
[1753960274388,6.504,3848.8,3848.7,2.59827993]
[1753960274557,6.504,3848.8,3848.7,6.59627993]
[1753960274752,6.9567,3848.8,3848.7,3.998]
[1753960275074,7.5922,3848.8,3848.7,3.998]
[1753960276073,7.5922,3848.8,3848.7,6.59627993]
[1753960276868,6.504,3848.8,3848.7,6.59627993]
[1753960277010,0.14,3848.9,3848.7,6.59627993]